{"text_format":"1","workbook":"xlsx","n_sheets":6,"sheets":["Исходные данные","Титульный лист","ПЗ","Протокол 1 R заземл","Протокол 2 R изол","Перечень оборудования"],"not_rendered":{"charts":0,"images":0,"macros":1,"external_links":0,"defined_names":29,"comments":0,"pivot_tables":0},"unopened":[],"bounds":{"document_bytes":16777216,"sheet_cells":100000,"rows_first":2000,"rows_last":500,"rows_between":2000,"halvings":0,"cell_chars":16384,"cell_head_chars":4096},"cells_cut":0,"cells_raw":0,"read":"whole","date_system":"1900"}

{"sheet":"Исходные данные","index":0,"n_rows":24,"n_cols":10,"rows_kept":24,"cut":false,"hidden":false,"merged":[[0,1,0,4],[27,2,27,4],[32,2,32,4],[34,2,34,4]]}
[null,"Исходные данные для формирования отчета",null,null,null,null,"Исходные данные"]
[1,"Заказчик","ООО \"ООО\"","Организация","ООО \"Новатек\"",null,"Титульный лист"]
[2,"Номер отчета",1,"Номер св-ва ЭТЛ","Регистрационный номер №",null,"ПЗ",{"$f":"CONCATENATE(C3,\"/\",I3,\"-\",J3)","v":"1/1-2015"},{"$f":"MONTH(Дата_испытаний)","v":1},{"$f":"YEAR(Дата_испытаний)","v":2015}]
[3,"Объект","Магазин","Дата выдачи","__.__.201_",null,"Протокол 1. R заземл"]
[4,"Адрес","Москва, ул. Калинина, 97","Выдавший орган","-------",null,"Протокол 2. R изоляции"]
[5,"Дата испытаний","2015-01-01","Срок действия разрешения: ","__.__.201_"]
[6,"Цель проведения испытаний (измерений)","Приемо-сдаточные","Контактный_телефон","ххххххххххххх"]
[7,"Проведеные испытания (измерения)",null,"E-mail","freienergy@yandex.ru"]
[null,"Номер телефона Заказчика","******* ***** **** Мария Васильевна"]
[null,"email"]
[null,"Стоимость","*****"]
[8,"Форма оплаты","безнал"]
[9,"Примечание","Нашли через сайт.","Температура воздуха",{"$f":"IF(G18<>\"\",G18,E18)","v":2}]
[10,"ЛИСТОВ в ОТЧЕТЕ",8,"Атмосферное давление, мм рт.ст.",{"$f":"IF(G19<>\"\",G19,E19)","v":749}]
[11,null,null,"Относительная влажность, %",{"$f":"IF(G20<>\"\",G20,E20)","v":44}]
[12]
[null,"Данные яндекса","Данные ГМЦ","Данные World Weather","Данные из Internet",null,"Фактические данные"]
[null,null,null,null,{"$f":"ROUND(E22,0)","v":2},"t"]
[null,null,null,null,{"$f":"ROUND(E23,0)","v":749},"p"]
[null,null,null,null,44,"wl"]
[]
[null,4,0,3,{"$f":"AVERAGE(B22:D22)","v":2.3333333333333335},"средняя t с 3-х ресурсов"]
[null,749,749,748,{"$f":"AVERAGE(B23:D23)","v":748.66666666666663},"среднee p с 3-х ресурсов"]
[null,32,57,42,{"$f":"AVERAGE(B24:D24)","v":43.666666666666664},"средняя влажн с 3-х ресурсов"]

{"sheet":"Титульный лист","index":1,"n_rows":36,"n_cols":11,"rows_kept":36,"cut":false,"hidden":false,"merged":[[88,0,90,31],[91,0,93,31],[34,0,34,9],[35,0,35,9],[25,0,25,5],[29,1,29,9],[30,1,30,9],[31,1,31,9],[14,0,14,9],[2,0,2,9],[0,0,0,9],[1,1,1,9],[18,0,18,9],[16,0,16,9],[15,0,15,9],[24,0,24,5],[21,2,21,9],[22,2,22,9],[21,0,21,1],[22,0,22,1],[24,6,24,7]]}
["Общество с ограниченной ответственностью",null,null,null,null,null,null,null,null,null,"Исходные данные"]
["«Новатек»",null,null,null,null,null,null,null,null,null,"Титульный лист"]
["Электроизмерительная лаборатория до 1000 В",null,null,null,null,null,null,null,null,null,"ПЗ"]
[null,null,null,null,null,null,null,null,null,null,"Протокол 1. R заземл"]
[null,null,null,null,null,null,null,null,null,null,"Протокол 2. R изоляции"]
[null,null,null,null,null,null,null,null,null,null,"Протокол 3. Металлосвязь"]
[null,null,null,null,null,null,null,null,null,null,"Протокол 4. Петля фаза ноль"]
[null,null,null,null,null,null,null,null,null,null,"РЕЕСТР"]
[]
[]
[]
[]
[]
[]
[{"$f":"CONCATENATE(\"Технический отчет №\",Номер_тех_отчета)","v":"Технический отчет №1/1-2015"}]
["О проведении:"]
[{"$f":"Проведенные_испытания","v":0}]
[]
[{"$f":"Объект","v":"Магазин"}]
["Наименование"]
[]
["По адресу:",null,{"$f":"Адрес","v":"Москва, ул. Калинина, 97"}]
["Заказчик:",null,{"$f":"Заказчик","v":"ООО \"ООО\""}]
[]
["Дата проведения испытаний (измерений):",null,null,null,null,null,{"$f":"Дата_испытаний","v":"2015-01-01"}]
["Цель проведения испытаний (измерений):",null,null,null,null,null,{"$f":"Цель_проведения_испытаний__измерений","v":"Приемо-сдаточные"}]
[]
[]
[]
["1.",{"$f":"CONCATENATE(\"Листов всего: \",'Исходные данные'!C14)","v":"Листов всего: 8"}]
["2.","Протоколы испытаний (измерений) распространяется только на электроустановку, подвергаемую испытаниям (измерениям)."]
["3.","Полная или частичная перепечатка настоящего отчета, исправления и дополнения в тексте протоколов испытаний после их выпуска без наличия письменного разрешения ООО «Новатек» не допускается."]
[]
[]
["г. Пенза"]
[{"$f":"CONCATENATE(YEAR(Дата_испытаний),\" г.\")","v":"2015 г."}]

{"sheet":"ПЗ","index":2,"n_rows":20,"n_cols":10,"rows_kept":20,"cut":false,"hidden":false,"merged":[[88,0,90,31],[91,0,93,31],[14,5,14,6],[14,7,14,8],[7,5,8,6],[7,7,8,8],[9,5,11,6],[9,7,11,8],[12,5,13,6],[12,7,13,8],[0,0,0,8],[17,0,17,8],[18,0,18,8],[19,0,19,8],[15,0,15,8],[16,0,16,8],[1,0,1,8],[2,0,2,8],[3,0,3,8],[4,0,4,8],[5,0,5,8],[6,0,6,8],[7,0,8,4],[9,0,11,4],[12,0,13,4],[14,0,14,4]]}
[{"$f":"+CONCATENATE(\"Пояснительная записка к техническому отчету №\",Номер_тех_отчета)","v":"Пояснительная записка к техническому отчету №1/1-2015"},null,null,null,null,null,null,null,null,"Исходные данные"]
["   Целью измерения сопротивления растеканию тока заземляющих устройств, является проверка их на соответствие требованиям нормативных документов.",null,null,null,null,null,null,null,null,"Титульный лист"]
["В электроустановках с глухозаземленной нейтралью напряжением до 1000В сопротивление заземляющего устройства, к которому присоединены нейтрали генераторов и трансформаторов или выводы источника однофазного тока, в любое время года должно быть не более 2, 4, и 8 Ом соответственно при линейных напряжениях 660, 380 и 220В источника трехфазного тока или 380, 220 и 127В источника однофазного тока. ",null,null,null,null,null,null,null,null,"ПЗ"]
["Сопротивление заземлителя, расположенного в непосредственной близости от нейтрали генератора или трансформатора или выхода источника однофазного тока должно быть не более 15, 30 и 60 Ом соответственно при линейных напряжениях 660, 380 и 220 В источника трёхфазного тока или 380, 220 и 127 В источника однофазного тока. Сопротивление заземляющих устройств повторных заземлений на вводах в здания не нормируется.",null,null,null,null,null,null,null,null,"Протокол 1. R заземл"]
["     Измерение сопротивления изоляции электроустановок  проводится с целью проверки их соответствия требованиям гл.1.8 ПУЭ., прил.3 ПТЭЭП и РД 34.45-51.300-97 «Объёмы и нормы испытания электрооборудования».",null,null,null,null,null,null,null,null,"Протокол 2. R изоляции"]
["Состояния изоляции, считают удовлетворительным, если каждая цепь с соединенными электроприемниками имеет сопротивление изоляции не менее соответствующего нормативного значения, приведенных ниже:",null,null,null,null,null,null,null,null,"Протокол 3. Металлосвязь"]
["Таблица 1 (ГОСТ Р 50571.16-2007 /IEC 60364-6:2006  Таблица 61А) \nМинимальное значение сопротивления изоляции.",null,null,null,null,null,null,null,null,"Протокол 4. Петля фаза ноль"]
["Номинальное напряжение цепи, В",null,null,null,null,"Испытательное напряжение постоянного тока, В",null,"Сопротивление изоляции, Мом",null,"РЕЕСТР"]
[]
["Системы безопасного сверхнизкого напряжения (БСНН) и функционального сверхнизкого напряжения (ФСНН), где сеть питается от безопасного разделяющего трансформатора и также выполнены требования (см. ГОСТ Р 50571.3, подпункты 411.1.2.1 и 411.1.3.3)",null,null,null,null,250,null,"≥ 0,25"]
[]
[]
["До 500 В включительно, за исключением систем БСНН и ФСНН",null,null,null,null,500,null,"≥ 0,5"]
[]
["Свыше 500В",null,null,null,null,1000,null,"≥ 1,0"]
["В данном случае сопротивление силовых и осветительных проводок должно быть не менее 0,5 МОм."]
["Измерение сопротивления заземляющих проводников производится для проверки их состояния надежности контактов и сварочных соединений. Сопротивление заземляющих проводников не нормируется ПУЭ и обычно составляет десятые доли Ома на ветвь. В соответствии с п.п. 26.1, 28.5 ПТЭЭП значение сопротивления должно быть не более 0,05 Ом.\nРезультаты всех проведенных испытаний внесены в данный технический отчет."]
["Заключение"]
["По результатам осмотра и проведенным испытаниям (измерениям), результаты которых приведены в протоколах к настоящему отчету, производилась оценка всего электрохозяйства 380-220В."]
["Электрооборудование, сети и электроустройства, прошедшие и выдержавшие испытания в объемах, требуемых ПУЭ и ПТЭЭП, пригодны для эксплуатации."]

{"sheet":"Протокол 1 R заземл","index":3,"n_rows":58,"n_cols":35,"rows_kept":58,"cut":false,"hidden":false,"merged":[[94,0,94,31],[88,0,90,31],[91,0,93,31],[44,2,47,7],[44,8,47,11],[44,12,47,16],[44,17,47,19],[44,20,47,22],[44,23,47,23],[44,24,47,26],[44,27,47,31],[44,0,47,1],[38,0,43,1],[38,2,43,7],[38,8,43,11],[38,12,43,16],[38,17,41,26],[42,17,43,19],[42,20,43,22],[42,24,43,26],[42,23,43,23],[38,27,43,31],[35,7,35,10],[36,13,36,15],[30,7,30,16],[3,18,4,31],[29,0,29,31],[23,15,26,18],[23,19,26,21],[23,22,26,24],[23,25,26,27],[23,28,26,31],[23,10,26,14],[23,6,26,9],[23,2,26,5],[23,0,26,1],[28,0,28,31],[2,0,4,15],[18,6,22,9],[18,2,22,5],[18,0,22,1],[1,18,2,31],[12,27,12,28],[18,28,22,31],[18,25,22,27],[18,10,19,18],[18,19,19,24],[20,19,22,21],[20,22,22,24],[20,15,22,18],[20,10,22,14]]}
[{"$f":"Организация","v":"ООО \"Новатек\""},null,null,null,null,null,"Электролаборатория",null,null,null,null,null,null,null,null,null,null,null,"Заказчик:",null,null,null,{"$f":"Заказчик","v":"ООО \"ООО\""},null,null,null,null,null,null,null,null,null,"Исходные данные"]
[{"$f":"Номер_свидетельства_ЭТЛ","v":"Регистрационный номер №"},null,null,null,null,null,null,null,null,null,null,"от",null,null,null,null,null,null,{"$f":"CONCATENATE(\"Объект: \",Объект)","v":"Объект: Магазин"},null,null,null,null,null,null,null,null,null,null,null,null,null,"Титульный лист"]
["Выдано",null,null,null,null,null,null,null,null,null,null,null,null,null,null,null,null,null,null,null,null,null,null,null,null,null,null,null,null,null,null,null,"ПЗ"]
[null,null,null,null,null,null,null,null,null,null,null,null,null,null,null,null,null,null,{"$f":"CONCATENATE(\"Адрес: \", Адрес)","v":"Адрес: Москва, ул. Калинина, 97"},null,null,null,null,null,null,null,null,null,null,null,null,null,"Протокол 1. R заземл"]
[null,null,null,null,null,null,null,null,null,null,null,null,null,null,null,null,null,null,null,null,null,null,null,null,null,null,null,null,null,null,null,null,"Протокол 2. R изоляции"]
["Действительно до",null,null,null,null,null,null,null,null,null,null,null,null,null,null,null,null,null,"Дата проведения измерений:",null,null,null,null,null,null,null,null,null,null,null,null,null,"Протокол 3. Металлосвязь"]
[{"$f":"CONCATENATE(\"Телефон: \", Контактный_номер)","v":"Телефон: ххххххххххххх"},null,null,null,null,null,null,null,null,null,null,null,null,null,null,null,null,null,{"$f":"CONCATENATE(TEXT(Дата_испытаний,\"ДД.ММ.ГГГГ\"), \" г.\")","v":"01.01.2015 г."},null,null,null,null,null,null,null,null,null,null,null,null,null,"Протокол 4. Петля фаза ноль"]
[{"$f":"CONCATENATE(\"Email: \",E_mail)","v":"Email: freienergy@yandex.ru"},null,null,null,null,null,null,null,null,null,null,null,null,null,null,null,null,null,null,null,null,null,null,null,null,null,null,null,null,null,null,null,"РЕЕСТР"]
[]
[null,null,null,null,null,null,null,null,null,{"$f":"CONCATENATE(\"Протокол №\",Номер_тех_отчета,\" от \",TEXT(Дата_испытаний,\"ДД.ММ.ГГГГ\"),\" г.\")","v":"Протокол №1/1-2015 от 01.01.2015 г."}]
[null,null,null,null,null,null,"измерения сопротивления заземляющего устройства"]
["Климатические условия при проведении измерений:"]
["Температура воздуха:",null,null,null,null,null,null,null,{"$f":"Температура_воздуха","v":2},null,"°С","Влажность воздуха:",null,null,null,null,null,null,{"$f":"Относительная_влажность","v":44},"%","Атмосф. давление:",null,null,null,null,null,null,{"$f":"Атмосферное_давление","v":749},null,"мм.рт.ст."]
["Цель измерений (испытаний):",null,null,null,null,null,null,null,null,null,null,{"$f":"Цель_проведения_испытаний__измерений","v":"Приемо-сдаточные"}]
["приёмо-сдаточные,  межремонтные,  контрольные испытания,  эксплуатационные,  для целей сертификации)"]
["Нормативные и технические документы, на соответствие требованиям которых проведены "]
["измерения (испытания):",null,null,null,null,null,null,null,null,"ПТЭЭП,  Приложение 3, Таблица 35 и 36."]
["Средства измерений:"]
["№ п/п",null,"Тип",null,null,null,"Заводской номер",null,null,null,"Метрологические характеристики",null,null,null,null,null,null,null,null,"Дата поверки",null,null,null,null,null,"Номер аттестата (свидетельства)",null,null,"Орган Гос.метрологической службы проводивший поверку"]
[]
[null,null,null,null,null,null,null,null,null,null,"Диапазон измерений",null,null,null,null,"Класс точности",null,null,null,"последн.",null,null,"очередн."]
[]
[]
[1,null,{"$f":"'Перечень оборудования'!B4","v":"Измеритель сопротивления заземлений Ф4103-М1"},null,null,null,{"$f":"'Перечень оборудования'!C4","v":0},null,null,null,{"$f":"'Перечень оборудования'!I4","v":0},null,null,null,null,{"$f":"'Перечень оборудования'!J4","v":0},null,null,null,{"$f":"'Перечень оборудования'!E4","v":"00:00:00"},null,null,{"$f":"'Перечень оборудования'!F4","v":"00:00:00"},null,null,{"$f":"'Перечень оборудования'!D4","v":0},null,null,{"$f":"'Перечень оборудования'!H4","v":0}]
[]
[]
[]
["Результаты внешнего осмотра (целостности и надёжности заземляющих устройств): "]
["В ноорме"]
[]
["1.","Вид грунта:",null,null,null,null,null,"Суглинок"]
["2.","Характер грунта:",null,null,null,null,null,{"$f":"CONCATENATE(AH32,\", \",AI32)","v":"влажный, устойчивый"},null,null,null,null,null,null,null,null,null,null,null,null,null,null,null,null,null,null,null,null,null,null,null,null,null,"влажный","устойчивый"]
["3.","Кол-во осадков, предшествующее моменту измерения в течение 3-х дней:",null,null,null,null,null,null,null,null,null,null,null,null,null,null,null,null,null,null,null,null,null,null,null,null,"0 мм"]
["4.","Заземляющее устройство применяется для электроустановки:"]
[{"$f":"Название_ЭЛУС","v":"Магазин"}]
["5.","Режим нейтрали: ",null,null,null,null,null,"TN-C"]
["6.","Удельное сопротивление грунта:",null,null,null,null,null,null,null,null,null,null,null,{"$f":"R_ground(AH32,H31)","v":75},null,null,"Ом на м",null,null,"(расчетное)"]
["Результаты измерений:"]
["№",null,"Назначение заземлителя,\nзаземляющего устройства",null,null,null,null,null,"Место\nизмерения",null,null,null,"Расстояние до вспомогательных зондов, м",null,null,null,null,"Сопротивление заземлителей (заземляющих устройств), (Ом)",null,null,null,null,null,null,null,null,null,"Заключение"]
[]
[]
[]
[null,null,null,null,null,null,null,null,null,null,null,null,null,null,null,null,null,"Допуст.",null,null,"Измер.",null,null,"К сез","Привед"]
[]
[1,null,"Контур заземления нежилого помещения",null,null,null,null,null,"Контур заземления",null,null,null,30,null,null,null,null,4]
[]
[]
[]
[]
["Сопротивление растеканию тока заземлителей соответствует (не соответствует) требованиям ПУЭ"]
["Ненужно зачеркнуть"]
["Испытания провел:"]
["Начальник электролаборатории"]
[]
["Электромонтер "]
[]
["Протокол проверил:"]
["Начальник электролаборатории"]

{"sheet":"Протокол 2 R изол","index":4,"n_rows":68,"n_cols":48,"rows_kept":68,"cut":false,"hidden":false,"merged":[[29,35,29,36],[29,37,29,38],[29,39,29,40],[29,41,29,42],[29,43,29,44],[29,45,29,46],[29,0,29,1],[29,2,29,10],[29,11,29,17],[29,18,29,22],[29,23,29,26],[29,27,29,28],[29,29,29,30],[29,31,29,32],[29,33,29,34],[27,43,27,44],[28,41,28,42],[28,43,28,44],[26,27,26,28],[27,27,27,28],[28,27,28,28],[26,29,26,30],[26,31,26,32],[27,29,27,30],[27,31,27,32],[28,29,28,30],[28,31,28,32],[37,35,37,36],[37,37,37,38],[37,39,37,40],[37,41,37,42],[37,43,37,44],[37,45,37,46],[26,33,26,34],[27,33,27,34],[28,33,28,34],[26,39,26,40],[27,39,27,40],[28,39,28,40],[26,45,26,46],[27,45,27,46],[28,45,28,46],[26,35,26,36],[26,37,26,38],[27,35,27,36],[27,37,27,38],[28,35,28,36],[28,37,28,38],[26,41,26,42],[26,43,26,44],[27,41,27,42],[37,0,37,1],[37,2,37,10],[37,11,37,17],[37,18,37,22],[37,23,37,26],[37,27,37,28],[37,29,37,30],[37,31,37,32],[37,33,37,34],[28,0,28,1],[28,2,28,10],[28,11,28,17],[28,18,28,22],[28,23,28,26],[50,0,51,4],[50,5,51,46],[49,5,49,46],[40,2,44,8],[45,2,48,8],[40,9,44,13],[45,9,48,13],[42,23,44,27],[42,28,44,32],[40,23,41,32],[45,23,48,27],[45,28,48,32],[40,33,44,38],[40,39,44,46],[36,37,36,38],[34,35,34,36],[34,37,34,38],[34,39,34,40],[35,2,35,10],[12,18,12,19],[12,8,12,9],[45,33,48,38],[45,39,48,46],[49,0,49,4],[36,45,36,46],[35,43,35,44],[35,45,35,46],[36,0,36,1],[36,2,36,10],[26,0,26,1],[26,2,26,10],[26,11,26,17],[26,18,26,22],[26,23,26,26],[27,0,27,1],[27,2,27,10],[27,11,27,17],[27,18,27,22],[27,23,27,26],[36,39,36,40],[36,41,36,42],[36,43,36,44],[35,0,35,1],[35,39,35,40],[35,41,35,42],[36,11,36,17],[36,18,36,22],[36,23,36,26],[36,27,36,28],[36,29,36,30],[36,31,36,32],[36,33,36,34],[36,35,36,36],[35,11,35,17],[35,18,35,22],[35,23,35,26],[35,27,35,28],[35,29,35,30],[35,31,35,32],[35,33,35,34],[35,35,35,36],[35,37,35,38],[24,43,24,44],[24,45,24,46],[25,11,25,17],[25,18,25,22],[25,23,25,26],[25,27,25,28],[25,29,25,30],[25,31,25,32],[25,33,25,34],[25,35,25,36],[25,37,25,38],[25,39,25,40],[25,41,25,42],[25,43,25,44],[25,45,25,46],[24,31,24,32],[24,33,24,34],[24,35,24,36],[25,2,25,10],[22,0,22,1],[23,0,23,1],[24,0,24,1],[25,0,25,1],[22,45,22,46],[23,11,23,17],[23,18,23,22],[23,23,23,26],[23,27,23,28],[23,29,23,30],[23,31,23,32],[23,33,23,34],[23,35,23,36],[23,37,23,38],[23,39,23,40],[23,41,23,42],[23,43,23,44],[23,45,23,46],[22,31,22,32],[22,33,22,34],[22,35,22,36],[22,43,22,44],[24,41,24,42],[19,39,21,40],[19,41,21,42],[19,43,21,44],[19,45,21,46],[18,23,21,26],[18,18,21,22],[22,2,22,10],[23,2,23,10],[24,2,24,10],[22,37,22,38],[22,39,22,40],[22,11,22,17],[22,18,22,22],[22,23,22,26],[22,27,22,28],[22,29,22,30],[24,37,24,38],[24,39,24,40],[24,11,24,17],[24,18,24,22],[24,23,24,26],[24,27,24,28],[24,29,24,30],[22,41,22,42],[67,0,67,31],[61,0,63,31],[64,0,66,31],[42,14,44,18],[42,19,44,22],[45,0,48,1],[45,14,48,18],[45,19,48,22],[1,33,2,46],[2,0,4,15],[3,33,4,46],[12,28,12,29],[40,0,44,1],[40,14,41,22],[18,11,21,17],[18,0,21,1],[18,2,21,10],[18,27,18,46],[19,27,21,28],[19,29,21,30],[19,31,21,32],[19,33,21,34],[19,35,21,36],[19,37,21,38],[30,0,33,1],[30,2,33,10],[30,11,33,17],[30,18,33,22],[30,23,33,26],[30,27,30,46],[31,27,33,28],[31,29,33,30],[31,31,33,32],[31,33,33,34],[31,35,33,36],[31,37,33,38],[31,39,33,40],[31,41,33,42],[31,43,33,44],[31,45,33,46],[34,41,34,42],[34,43,34,44],[34,45,34,46],[34,0,34,1],[34,2,34,10],[34,11,34,17],[34,18,34,22],[34,23,34,26],[34,27,34,28],[34,29,34,30],[34,31,34,32],[34,33,34,34]]}
[{"$f":"Организация","v":"ООО \"Новатек\""},null,null,null,null,null,"Электролаборатория",null,null,null,null,null,null,null,null,null,null,null,null,null,null,null,null,null,null,null,null,null,null,null,null,null,null,"Заказчик:",null,null,null,{"$f":"Заказчик","v":"ООО \"ООО\""},null,null,null,null,null,null,null,null,null,"Исходные данные"]
[{"$f":"Номер_свидетельства_ЭТЛ","v":"Регистрационный номер №"},null,null,null,null,null,null,null,null,null,null,"от",null,null,null,null,null,null,null,null,null,null,null,null,null,null,null,null,null,null,null,null,null,{"$f":"CONCATENATE(\"Объект: \",Объект)","v":"Объект: Магазин"},null,null,null,null,null,null,null,null,null,null,null,null,null,"Титульный лист"]
["Выдано",null,null,null,null,null,null,null,null,null,null,null,null,null,null,null,null,null,null,null,null,null,null,null,null,null,null,null,null,null,null,null,null,null,null,null,null,null,null,null,null,null,null,null,null,null,null,"ПЗ"]
[null,null,null,null,null,null,null,null,null,null,null,null,null,null,null,null,null,null,null,null,null,null,null,null,null,null,null,null,null,null,null,null,null,{"$f":"CONCATENATE(\"Адрес: \", Адрес)","v":"Адрес: Москва, ул. Калинина, 97"},null,null,null,null,null,null,null,null,null,null,null,null,null,"Протокол 1. R заземл"]
[null,null,null,null,null,null,null,null,null,null,null,null,null,null,null,null,null,null,null,null,null,null,null,null,null,null,null,null,null,null,null,null,null,null,null,null,null,null,null,null,null,null,null,null,null,null,null,"Протокол 2. R изоляции"]
["Действительно до",null,null,null,null,null,null,null,null,null,null,null,null,null,null,null,null,null,null,null,null,null,null,null,null,null,null,null,null,null,null,null,null,"Дата проведения измерений:",null,null,null,null,null,null,null,null,null,null,null,null,null,"Протокол 3. Металлосвязь"]
[{"$f":"CONCATENATE(\"Телефон: \", Контактный_номер)","v":"Телефон: ххххххххххххх"},null,null,null,null,null,null,null,null,null,null,null,null,null,null,null,null,null,null,null,null,null,null,null,null,null,null,null,null,null,null,null,null,{"$f":"CONCATENATE(TEXT(Дата_испытаний,\"ДД.ММ.ГГГГ\"), \" г.\")","v":"01.01.2015 г."},null,null,null,null,null,null,null,null,null,null,null,null,null,"Протокол 4. Петля фаза ноль"]
[{"$f":"CONCATENATE(\"Email: \",E_mail)","v":"Email: freienergy@yandex.ru"},null,null,null,null,null,null,null,null,null,null,null,null,null,null,null,null,null,null,null,null,null,null,null,null,null,null,null,null,null,null,null,null,null,null,null,null,null,null,null,null,null,null,null,null,null,null,"РЕЕСТР"]
[]
[null,null,null,null,null,null,null,null,null,null,null,null,null,null,null,{"$f":"CONCATENATE(\"Протокол №\",Номер_тех_отчета,\" от \",TEXT(Дата_испытаний,\"ДД.ММ.ГГГГ\"),\" г.\")","v":"Протокол №1/1-2015 от 01.01.2015 г."}]
[null,null,null,null,null,null,null,null,null,null,null,null,null,null,null,"проверки сопротивления изоляции"]
["Климатические условия при проведении измерений:"]
["Температура воздуха:",null,null,null,null,null,null,null,{"$f":"Температура_воздуха","v":2},null,"°С","Влажность воздуха:",null,null,null,null,null,null,{"$f":"Относительная_влажность","v":44},null,"%","Атмосф. давление:",null,null,null,null,null,null,{"$f":"Атмосферное_давление","v":749},null,"мм.рт.ст."]
["Цель измерений (испытаний):",null,null,null,null,null,null,null,null,null,null,{"$f":"Цель_проведения_испытаний__измерений","v":"Приемо-сдаточные"}]
["приёмо-сдаточные,  межремонтные,  контрольные испытания,  эксплуатационные,  для целей сертификации)"]
["Нормативные и технические документы, на соответствие требованиям которых проведены "]
["измерения (испытания):",null,null,null,null,null,null,null,null,"ПУЭ глава 1.8, ПТЭЭП Приложение 3, ГОСТ Р 50571.16-2007 Часть 6."]
["Результаты проверки:"]
["№ п/п",null,"Наименование линий, электрических машин по проекту, рабочее напряжение.",null,null,null,null,null,null,null,null,"Марка провода, кабеля, кол-во жил сечение провода, кабеля. (мм²)",null,null,null,null,null,null,"Напряжение мегаомметра (В)",null,null,null,null,"Допуст. сопрот. изоляции\n(МОм)",null,null,null,"Сопротивление изоляции, (МОм)"]
[null,null,null,null,null,null,null,null,null,null,null,null,null,null,null,null,null,null,null,null,null,null,null,null,null,null,null,"A-B",null,"B-C",null,"C-A",null,"A-N \n(PEN)",null,"B-N \n(PEN)",null,"C-N \n(PEN)",null,"A-PE",null,"B-PE",null,"C-PE",null,"N-PE"]
[]
[]
[1,null,"Водное устройство",null,null,null,null,null,null,null,null,"КГ 3*16+1*6",null,null,null,null,null,null,1000,null,null,null,null,0.5]
[2,null,"АП-50-25 А",null,null,null,null,null,null,null,null,"КГ 3*10+1*6",null,null,null,null,null,null,1000,null,null,null,null,0.5]
[3,null,"Атека",null,null,null,null,null,null,null,null,"ПВС 4*2,5",null,null,null,null,null,null,1000,null,null,null,null,0.5]
[]
[]
[]
[]
[]
["№ п/п",null,"Наименование линий, электрических машин по проекту, рабочее напряжение.",null,null,null,null,null,null,null,null,"Марка провода, кабеля, кол-во жил сечение провода, кабеля. (мм²)",null,null,null,null,null,null,"Напряжение мегаомметра (В)",null,null,null,null,"Допуст. сопрот. изоляции\n(МОм)",null,null,null,"Сопротивление изоляции, (МОм)"]
[null,null,null,null,null,null,null,null,null,null,null,null,null,null,null,null,null,null,null,null,null,null,null,null,null,null,null,"A-B",null,"B-C",null,"C-A",null,"A-N \n(PEN)",null,"B-N \n(PEN)",null,"C-N \n(PEN)",null,"A-PE",null,"B-PE",null,"C-PE",null,"N-PE"]
[]
[]
[8,null,"Розетка зоны временной сортировки товара",null,null,null,null,null,null,null,null,"ВВГнгLS 3*2,5",null,null,null,null,null,null,1000,null,null,null,null,0.5,null,null,null,{"$f":"\"-\"","v":"-"},null,"-",null,"-",null,110,null,{"$f":"\"-\"","v":"-"},null,"-",null,110,null,{"$f":"\"-\"","v":"-"},null,"-",null,120]
[9,null,"Розетка торгового зала (плазменная панель)",null,null,null,null,null,null,null,null,"ВВГнгLS 3*2,5",null,null,null,null,null,null,1000,null,null,null,null,0.5,null,null,null,"-",null,"-",null,"-",null,120,null,"-",null,"-",null,110,null,"-",null,"-",null,110]
[10,null,"Детектор краж",null,null,null,null,null,null,null,null,"ВВГнгLS 3*2,5",null,null,null,null,null,null,1000,null,null,null,null,0.5,null,null,null,"-",null,"-",null,"-",null,110,null,"-",null,"-",null,120,null,"-",null,"-",null,120]
[11,null,"Фанкойл",null,null,null,null,null,null,null,null,"ВВГнгLS 3*2,5",null,null,null,null,null,null,1000,null,null,null,null,0.5,null,null,null,"-",null,"-",null,"-",null,130,null,"-",null,"-",null,120,null,"-",null,"-",null,130]
[]
["Проверки проведены приборами:"]
["№ п/п",null,"Тип",null,null,null,null,null,null,"Заводской номер",null,null,null,null,"Метрологические характеристики",null,null,null,null,null,null,null,null,"Дата поверки",null,null,null,null,null,null,null,null,null,"Номер свидетельства  (аттестата)",null,null,null,null,null,"Орган Гос.метрологической службы проводивший поверку"]
[]
[null,null,null,null,null,null,null,null,null,null,null,null,null,null,"Диапазон измерений",null,null,null,null,"Класс точности",null,null,null,"последн.",null,null,null,null,"очередн."]
[]
[]
[1,null,{"$f":"'Перечень оборудования'!B5","v":"Мегаомметр ЭСО0210/2-Г"},null,null,null,null,null,null,{"$f":"'Перечень оборудования'!C5","v":0},null,null,null,null,"0-10 000 МОм",null,null,null,null,"±2,5%",null,null,null,{"$f":"'Перечень оборудования'!E5","v":0},null,null,null,null,{"$f":"'Перечень оборудования'!F5","v":0},null,null,null,null,{"$f":"'Перечень оборудования'!D5","v":0},null,null,null,null,null,"--------"]
[]
[]
[]
["Примечание: ",null,null,null,null,"Допустимое сопротивление изоляции проводов в электроустановке напряжением до 500В не менее 0,5 МОм."]
["Заключение: ",null,null,null,null,"Сопротивление изоляции соответствует (не соответствует) требованиям гл.1.8 ПУЭ., прил.3 ПТЭЭП и РД 34.45-51.300-97 «Объёмы и нормы испытания электрооборудования»."]
[]
["Ненужно зачеркнуть"]
["Испытания провел:"]
["Начальник электролаборатории"]
[]
["Электромонтер "]
[]
["Протокол проверил:"]
["Начальник электролаборатории"]
[]
["Протоколы испытаний (измерений) распространяется только на электроустановку, подвергаемую испытаниям (измерениям)."]
[]
[]
["Полная или частичная перепечатка настоящего отчета, исправления и дополнения в тексте протоколов испытаний после их выпуска без наличия письменного разрешения ООО «Новатек» не допускается."]
[]
[]
["Протокол распространяется только на элементы электроустановки, подвергнутые измерениям (проверке)."]

{"sheet":"Перечень оборудования","index":5,"n_rows":7,"n_cols":10,"rows_kept":7,"cut":false,"hidden":false,"merged":[[1,8,1,9],[1,0,2,0],[1,1,1,2],[1,3,1,5],[1,6,2,6]]}
["Перечень испытательного оборудования, средств измерений и свидетельств о госповерке"]
["№ п/п","Испытательное оборудование, средства измерений",null,"Свидетельство о госповерке",null,null,"Находятся в собственности",null,"Метрологические характеристики"]
[null,"наименование","заводской номер","номер","дата поверки","действительно до",null,null,"Диапазон измерений","Класс точности"]
[1,"Измеритель сопротивления заземлений Ф4103-М1"]
[2,"Мегаомметр ЭСО0210/2-Г"]
[3,"Омметр ЭС02212"]
[4,"Измеритель параметров цепи фаза-нуль ЦК02220"]